bitfinex/quotes_BTCUSD_20240617
["timestamp","ask_amount","ask_price","bid_price","bid_amount"]
[1718606979002,2.48744482,66192.0,66191.0,3e-07]
[1718606985249,2.53242997,66192.0,66191.0,3e-07]
[1718606986176,2.63242997,66192.0,66191.0,3e-07]
[1718606986621,2.53242997,66192.0,66191.0,3e-07]
[1718606987064,2.53248654,66192.0,66191.0,3e-07]
[1718606991204,2.48744482,66192.0,66191.0,3e-07]
[1718606992062,2.58744482,66192.0,66191.0,3e-07]
[1718606992906,2.63766569,66192.0,66191.0,3e-07]
[1718606993377,2.65500741,66192.0,66191.0,3e-07]
[1718606994649,2.55500741,66192.0,66191.0,3e-07]
[1718606994890,2.65482558,66192.0,66191.0,3e-07]
[1718606996385,2.58726299,66192.0,66191.0,3e-07]
[1718606997523,2.58449311,66192.0,66191.0,3e-07]
[1718606998589,2.48449311,66192.0,66191.0,3e-07]
[1718606998805,2.58449311,66192.0,66191.0,3e-07]
[1718606999010,2.55849311,66192.0,66191.0,3e-07]
[1718606999436,2.71629311,66192.0,66191.0,3e-07]
[1718606999655,2.73029311,66192.0,66191.0,3e-07]
[1718607000381,2.82037656,66192.0,66191.0,3e-07]
[1718607002322,2.76987656,66192.0,66191.0,3e-07]
[1718607002544,2.82037656,66192.0,66191.0,3e-07]
[1718607003442,2.72037656,66192.0,66191.0,3e-07]
[1718607003687,2.82037656,66192.0,66191.0,3e-07]
[1718607004525,2.73029311,66192.0,66191.0,3e-07]
[1718607004768,2.63029311,66192.0,66191.0,3e-07]
[1718607005196,2.73029311,66192.0,66191.0,3e-07]
[1718607006070,2.75394266,66192.0,66191.0,3e-07]
[1718607007335,2.60344266,66192.0,66191.0,3e-07]
[1718607007560,2.86654698,66192.0,66191.0,3e-07]
[1718607007767,2.76654698,66192.0,66191.0,3e-07]
[1718607007976,2.86654698,66192.0,66191.0,3e-07]
[1718607009076,2.76654698,66192.0,66191.0,3e-07]
[1718607010032,2.80544698,66192.0,66191.0,3e-07]
[1718607010489,2.70544698,66192.0,66191.0,3e-07]
[1718607010910,2.80544698,66192.0,66191.0,3e-07]
[1718607011119,2.75494698,66192.0,66191.0,3e-07]
[1718607011331,2.80544698,66192.0,66191.0,3e-07]
[1718607013154,2.69284266,66192.0,66191.0,3e-07]
[1718607013348,2.8057295,66192.0,66191.0,3e-07]
[1718607013600,2.69211951,66192.0,66191.0,3e-07]
[1718607015269,2.80502446,66192.0,66191.0,3e-07]
[1718607016348,2.70502446,66192.0,66191.0,3e-07]
[1718607018386,2.80502446,66192.0,66191.0,3e-07]
[1718607022784,2.70502446,66192.0,66191.0,3e-07]
[1718607022986,2.80502446,66192.0,66191.0,3e-07]
[1718607023800,0.12977306,66184.0,66183.0,3e-07]
[1718607024019,0.83697814,66184.0,66183.0,3e-07]
[1718607024249,1.85157067,66184.0,66183.0,3e-07]
[1718607024502,1.68675313,66184.0,66183.0,3e-07]
[1718607024714,1.48764559,66184.0,66183.0,3e-07]
[1718607024942,1.53814559,66184.0,66183.0,3e-07]
[1718607025388,1.54614559,66184.0,66183.0,3e-07]
[1718607025600,1.49564559,66184.0,66183.0,3e-07]
[1718607026020,1.48764559,66184.0,66183.0,3e-07]
[1718607026231,1.53814559,66184.0,66183.0,3e-07]
[1718607026884,1.53814559,66184.0,66183.0,0.1398003]
[1718607027103,1.54414559,66184.0,66183.0,0.15378033]
[1718607027327,1.54414559,66184.0,66183.0,0.1398003]
[1718607028382,1.55214559,66184.0,66183.0,0.1398003]
[1718607028803,1.1715037,66184.0,66183.0,0.1398003]
[1718607029035,1.19145859,66184.0,66183.0,0.1398003]
[1718607029252,1.24995859,66184.0,66183.0,0.1398003]
[1718607029479,1.55214559,66184.0,66183.0,0.1398003]
[1718607029689,1.24995859,66184.0,66183.0,0.1398003]
[1718607030264,1.55214559,66184.0,66183.0,0.1398003]
[1718607031363,1.24995859,66184.0,66183.0,0.1398003]
[1718607031584,1.55214559,66184.0,66183.0,0.1398003]
[1718607036359,1.55214559,66184.0,66183.0,3e-07]
[1718607036568,1.63824559,66184.0,66183.0,3e-07]
[1718607036796,1.67905056,66184.0,66183.0,3e-07]
[1718607037007,1.76157019,66184.0,66183.0,3e-07]
[1718607037641,1.67905056,66184.0,66183.0,3e-07]
[1718607038099,1.83113835,66184.0,66183.0,3e-07]
[1718607038305,1.90871531,66184.0,66183.0,3e-07]
[1718607039023,1.90871593,66184.0,66183.0,3e-07]
[1718607039496,1.90868905,66184.0,66183.0,3e-07]
[1718607040127,1.90874197,66184.0,66183.0,3e-07]
[1718607041924,1.90869902,66184.0,66183.0,3e-07]
[1718607042482,1.47971806,66179.0,66178.0,0.1422]
[1718607042708,1.53021806,66179.0,66178.0,0.1422]
[1718607042920,1.53678424,66179.0,66178.0,0.1422]
[1718607043331,1.47978106,66176.0,66175.0,0.0601]
[1718607043541,1.53028106,66176.0,66175.0,0.0601]
[1718607046422,1.53528106,66176.0,66175.0,0.0601]
[1718607046718,1.53627537,66176.0,66175.0,0.0601]
[1718607046920,1.53527537,66176.0,66175.0,0.0601]
[1718607047311,1.53727537,66176.0,66175.0,0.0601]
[1718607047728,1.48677537,66176.0,66175.0,0.1398]
[1718607047938,1.54284032,66176.0,66175.0,0.1398]
[1718607053280,1.49234032,66176.0,66175.0,0.1398]
[1718607053511,1.54284032,66176.0,66175.0,0.1398]
[1718607060221,1.47982106,66174.0,66173.0,0.146394]
[1718607060655,1.48506767,66174.0,66173.0,0.146394]
[1718607060872,1.46511278,66174.0,66173.0,0.146394]
[1718607061093,1.46511278,66174.0,66173.0,0.18875661]
[1718607061524,1.48606767,66174.0,66173.0,0.18875661]
[1718607061781,1.48606767,66174.0,66173.0,0.146394]
[1718607061997,1.46611278,66174.0,66173.0,0.146394]
[1718607062691,1.36629461,66174.0,66173.0,0.146394]
[1718607062892,1.46611278,66174.0,66173.0,0.146394]
[1718607063131,1.46611278,66174.0,66173.0,0.18875661]
[1718607063359,1.46611278,66174.0,66173.0,0.146394]
[1718607063813,1.48606767,66174.0,66173.0,0.146394]
[1718607064252,1.46611278,66174.0,66173.0,0.146394]
[1718607064464,1.48606767,66174.0,66173.0,0.146394]
[1718607064879,1.46611278,66174.0,66173.0,0.146394]
[1718607066032,1.48606767,66174.0,66173.0,0.146394]
[1718607066250,1.48606767,66174.0,66173.0,0.009394]
[1718607067156,1.48606767,66174.0,66173.0,0.05244661]
[1718607067392,0.15736261,66174.0,66173.0,0.19714661]
[1718607067635,0.15736261,66174.0,66173.0,0.36759571]
[1718607067858,0.45959561,66174.0,66173.0,0.36759571]
[1718607068326,0.76182861,66174.0,66173.0,0.36759571]
[1718607069004,0.76182861,66174.0,66173.0,0.31444453]
[1718607069731,1.16387978,66174.0,66173.0,0.27139192]
[1718607069964,1.16387978,66174.0,66173.0,0.154094]
[1718607070192,1.18383467,66174.0,66173.0,0.009394]
[1718607072068,1.23433467,66174.0,66173.0,0.009394]
[1718607072988,1.18383467,66174.0,66173.0,0.009394]
[1718607073223,1.23433467,66174.0,66173.0,0.009394]
[1718607073717,1.53656767,66174.0,66173.0,0.009394]
[1718607073965,1.18383467,66174.0,66173.0,0.009394]
[1718607074204,1.23433467,66174.0,66173.0,0.009394]
[1718607074430,1.23333467,66174.0,66173.0,0.009394]
[1718607074652,1.23433467,66174.0,66173.0,0.009394]
[1718607075126,1.23333467,66174.0,66173.0,0.009394]
[1718607075368,1.23733467,66174.0,66173.0,0.009394]
[1718607076060,1.18683467,66174.0,66173.0,0.12169661]
[1718607076283,1.21737978,66174.0,66173.0,0.12169661]
[1718607076508,1.24033467,66174.0,66173.0,0.12169661]
[1718607076960,1.24033467,66174.0,66173.0,0.04469661]
[1718607077247,1.24033467,66174.0,66173.0,0.009394]
[1718607077509,1.30623467,66174.0,66173.0,0.009394]
[1718607078521,1.68696767,66174.0,66173.0,0.009394]
[1718607078752,1.38473467,66174.0,66173.0,0.009394]
[1718607078979,1.68696767,66174.0,66173.0,0.009394]
[1718607080414,1.24033467,66174.0,66173.0,0.009394]
[1718607080675,1.18983467,66174.0,66173.0,0.150694]
[1718607081621,1.18983467,66174.0,66173.0,0.009394]
[1718607084918,1.49206767,66174.0,66173.0,0.009394]
[1718607085144,1.16987978,66174.0,66173.0,0.03805661]
[1718607085364,1.07006161,66174.0,66173.0,0.03805661]
[1718607085609,1.07006161,66174.0,66173.0,0.11995661]
[1718607085610,0.46559561,66174.0,66173.0,0.11995661]
[1718607085842,0.86764678,66174.0,66173.0,0.18635661]
[1718607086564,1.16987978,66174.0,66173.0,0.18635661]
[1718607087014,1.18983467,66174.0,66173.0,0.18635661]
[1718607087699,1.18965282,66174.0,66173.0,0.03105661]
[1718607087922,1.16969793,66174.0,66173.0,0.03105661]
[1718607089541,1.18965282,66174.0,66173.0,0.03105661]
[1718607091754,1.16969793,66174.0,66173.0,0.03105661]
[1718607092155,1.18965282,66174.0,66173.0,0.03105661]
[1718607092788,1.16969793,66174.0,66173.0,0.03105661]
[1718607093227,0.01224661,66174.0,66173.0,0.16995661]
[1718607093432,0.16336261,66174.0,66173.0,0.38462422]
[1718607093634,0.46559561,66174.0,66173.0,0.33930805]
[1718607093846,0.46559561,66174.0,66173.0,0.40728231]
[1718607094242,0.46559561,66174.0,66173.0,0.33930805]
[1718607094459,0.76782861,66174.0,66173.0,0.33930805]
[1718607094662,0.76382861,66174.0,66173.0,0.33930805]
[1718607095051,0.00824661,66174.0,66173.0,0.33930805]
[1718607095287,0.00524661,66174.0,66173.0,0.40728231]
[1718607095477,0.15636261,66174.0,66173.0,0.40728231]
[1718607095686,0.15736261,66174.0,66173.0,0.40728231]
[1718607096148,0.15736261,66174.0,66173.0,0.29591269]
[1718607096149,0.45859561,66174.0,66173.0,0.29591269]
[1718607096363,0.45859561,66174.0,66173.0,0.36322573]
[1718607096521,0.45959561,66174.0,66173.0,0.36322573]
[1718607096679,0.45959561,66174.0,66173.0,0.29525147]
[1718607096885,0.45959561,66174.0,66173.0,0.16995661]
[1718607097312,0.45959561,66174.0,66173.0,0.29525123]
[1718607097507,0.45959561,66174.0,66173.0,0.22793831]
[1718607097704,0.45959561,66174.0,66173.0,0.35333068]
[1718607098750,0.15736261,66174.0,66173.0,0.35333068]
[1718607100564,0.00624661,66174.0,66173.0,0.35333068]
[1718607100787,0.00624661,66174.0,66173.0,0.80668768]
[1718607101240,0.00624661,66174.0,66173.0,0.44388639]
[1718607101241,0.001,66174.0,66173.0,0.44388639]
[1718607104479,0.00624935,66174.0,66173.0,0.44388639]
[1718607104688,0.0019762,66174.0,66173.0,0.44388639]
[1718607105581,0.0019762,66174.0,66173.0,0.31849402]
[1718607105733,0.0019762,66174.0,66173.0,0.44374696]
[1718607106136,0.0019762,66174.0,66173.0,0.39844223]
[1718607106985,0.0019762,66174.0,66173.0,0.39844243]
[1718607107406,0.0019762,66174.0,66173.0,0.3531966]
[1718607108047,0.00623591,66174.0,66173.0,0.3531966]
[1718607108252,0.0019762,66174.0,66173.0,0.3531966]
[1718607108459,0.00623591,66174.0,66173.0,0.39844311]
[1718607108679,0.001,66174.0,66173.0,0.3531966]
[1718607111355,0.001,66174.0,66173.0,0.39842833]
[1718607111557,0.001,66174.0,66173.0,0.54954733]
[1718607111784,0.001,66174.0,66173.0,0.3526562]
[1718607112464,0.001,66174.0,66173.0,0.852393]
[1718607112657,0.001,66174.0,66173.0,1.32836842]
[1718607112877,0.001,66174.0,66173.0,1.56275882]
[1718607113035,0.001,66174.0,66173.0,1.63575882]
[1718607113419,0.001,66174.0,66173.0,1.33352082]
[1718607113824,0.30217,66188.0,66176.0,0.151111]
[1718607113825,0.151946,66183.0,66176.0,0.151111]
[1718607114031,0.151946,66183.0,66178.0,0.0505]
[1718607114202,0.00523844,66182.0,66179.0,0.33478738]
[1718607114526,0.00523844,66182.0,66180.0,0.18269959]
[1718607114781,0.00085,66183.0,66180.0,0.33478738]
[1718607114997,0.00523769,66181.0,66180.0,0.15208779]
[1718607115206,0.00085,66183.0,66180.0,0.33484517]
[1718607115436,0.00085,66183.0,66181.0,0.18275738]
[1718607115658,0.152098,66182.0,66180.0,0.15208779]
[1718607115862,0.1511,66181.0,66180.0,0.15208779]
[1718607116072,0.1511,66181.0,66180.0,0.33483714]
[1718607116303,0.1511,66181.0,66180.0,0.33883714]
[1718607116522,0.45431233,66181.0,66180.0,0.33883714]
[1718607116747,0.15211133,66181.0,66180.0,0.33483714]
[1718607116959,0.15211133,66181.0,66180.0,0.39298085]
[1718607117173,0.15211133,66181.0,66180.0,0.39798085]
[1718607117389,0.00101133,66181.0,66180.0,0.39798085]
[1718607117809,0.00101133,66181.0,66180.0,0.40198085]
[1718607118286,0.15211133,66181.0,66180.0,0.39798085]
[1718607118492,0.15211133,66181.0,66180.0,0.39698085]
[1718607118708,0.15311133,66181.0,66180.0,0.40098085]
[1718607119358,0.15311133,66181.0,66180.0,0.400798]
[1718607120262,0.45531233,66181.0,66180.0,0.40079881]
[1718607120499,0.75751333,66181.0,66180.0,0.40079881]
[1718607120947,0.8573315,66181.0,66180.0,0.24871102]
[1718607121168,1.2967325,66181.0,66180.0,0.13261495]
[1718607121404,1.2967325,66181.0,66180.0,0.19058757]
[1718607121588,1.2967325,66181.0,66180.0,0.13261495]
[1718607121894,1.2967325,66181.0,66180.0,0.14587645]
[1718607122122,1.31668739,66181.0,66180.0,0.14587645]
[1718607122343,1.61888839,66181.0,66180.0,0.008]
[1718607122787,1.2967325,66181.0,66180.0,0.008]
[1718607123003,1.30127631,66181.0,66180.0,0.004]
[1718607123191,1.30127631,66181.0,66180.0,0.13039355]
[1718607123668,1.3212312,66181.0,66180.0,0.13039355]
[1718607124558,1.3212312,66181.0,66180.0,0.12639355]
[1718607124780,1.3212312,66181.0,66180.0,0.001]
[1718607125901,1.6234322,66181.0,66180.0,0.001]
[1718607126561,1.3212312,66181.0,66180.0,0.001]
[1718607127680,1.6234322,66181.0,66180.0,0.001]
[1718607127893,1.3212312,66181.0,66180.0,0.001]
[1718607128752,1.3212312,66181.0,66180.0,0.12639587]
[1718607128965,1.30127631,66181.0,66180.0,0.12639587]
[1718607129629,1.3212312,66181.0,66180.0,0.12639388]
[1718607130303,1.3212312,66181.0,66180.0,0.001]
[1718607130525,1.3212312,66181.0,66180.0,0.12639342]
[1718607130996,1.3212312,66181.0,66180.0,0.13903276]
[1718607130997,1.30127631,66181.0,66180.0,0.13903276]
[1718607131639,1.30127631,66181.0,66180.0,0.12639342]
[1718607131867,1.30127631,66181.0,66180.0,0.12639489]
[1718607132338,1.3212312,66181.0,66180.0,0.12639489]
[1718607132969,1.3212312,66181.0,66180.0,0.001]
[1718607134084,1.78551999,66181.0,66180.0,0.001]
[1718607134785,1.78551999,66181.0,66173.0,0.002394]
[1718607134786,1.17758806,66174.0,66173.0,0.002394]
[1718607135001,1.32028806,66174.0,66173.0,0.002394]
[1718607135212,1.37731103,66174.0,66173.0,0.002394]
[1718607136125,1.37931103,66174.0,66173.0,0.002394]
[1718607136345,1.38231103,66174.0,66173.0,0.002394]
[1718607139900,1.68454403,66174.0,66173.0,0.002394]
[1718607140121,1.68454403,66174.0,66173.0,0.03035661]
[1718607140792,1.68454403,66174.0,66173.0,0.002394]
[1718607144800,1.38231103,66174.0,66173.0,0.002394]
[1718607145695,1.68454403,66174.0,66173.0,0.002394]
[1718607145920,1.38231103,66174.0,66173.0,0.002394]
[1718607153472,1.39231103,66174.0,66173.0,0.002394]
[1718607153934,1.69454403,66174.0,66173.0,0.002394]
[1718607154146,1.38231103,66174.0,66173.0,0.002394]
[1718607154624,1.69454403,66174.0,66173.0,0.002394]
[1718607155327,1.68454403,66174.0,66173.0,0.002394]
[1718607158139,1.69454403,66174.0,66173.0,0.002394]
[1718607159031,1.68454403,66174.0,66173.0,0.002394]
[1718607162305,1.69454403,66174.0,66173.0,0.002394]
[1718607162501,1.68454403,66174.0,66173.0,0.002394]
[1718607164016,1.68154403,66174.0,66173.0,0.002394]
[1718607164155,1.67954403,66174.0,66173.0,0.002394]
[1718607164574,1.33481103,66174.0,66173.0,0.03035661]
[1718607164786,1.68754403,66174.0,66173.0,0.002394]
[1718607165000,1.69954403,66174.0,66173.0,0.002394]
[1718607165224,1.69154403,66174.0,66173.0,0.002394]
[1718607165424,1.26371103,66174.0,66173.0,0.002394]
[1718607165634,1.33621103,66174.0,66173.0,0.002394]
[1718607166480,1.63844403,66174.0,66173.0,0.12781619]
[1718607166689,1.33621103,66174.0,66173.0,0.12781619]
[1718607167103,1.28571103,66174.0,66173.0,0.12781619]
[1718607167327,1.33621103,66174.0,66173.0,0.12781619]
[1718607167978,0.93442314,66174.0,66173.0,0.27271619]
[1718607168179,0.95437803,66174.0,66173.0,0.27271619]
[1718607168395,0.93442314,66174.0,66173.0,0.12781619]
[1718607168870,0.93442314,66174.0,66173.0,0.16832102]
[1718607169081,1.23665614,66174.0,66173.0,0.16832102]
[1718607169731,1.20611103,66174.0,66173.0,0.16832102]
[1718607170797,1.20696103,66174.0,66173.0,0.16832102]
[1718607171008,1.18700614,66174.0,66173.0,0.16832102]
[1718607171221,1.20696103,66174.0,66173.0,0.16832102]
[1718607171881,1.18700614,66174.0,66173.0,0.16832102]
[1718607172104,0.88477314,66174.0,66173.0,0.16831011]
[1718607173227,1.18700614,66174.0,66173.0,0.16831011]
[1718607173442,1.18700614,66174.0,66173.0,0.16830759]
[1718607173935,0.88477314,66174.0,66173.0,0.1683073]
[1718607174590,0.90472803,66174.0,66173.0,0.1683073]
[1718607175538,1.20696103,66174.0,66173.0,0.1683073]
[1718607175764,0.90472803,66174.0,66173.0,0.1683073]
[1718607176196,1.20696103,66174.0,66173.0,0.1683073]
[1718607178130,1.20696103,66174.0,66173.0,0.16831244]
[1718607178581,1.28386103,66174.0,66173.0,0.12780761]
[1718607179359,1.28386103,66174.0,66173.0,0.002394]
[1718607181676,0.98162803,66174.0,66173.0,0.002394]
[1718607182120,1.28386103,66174.0,66173.0,0.002394]
[1718607185944,1.34756103,66174.0,66173.0,0.002394]
[1718607187940,1.39806103,66174.0,66173.0,0.03035661]
[1718607188381,1.33476103,66174.0,66173.0,0.03035661]
[1718607192177,1.33476103,66174.0,66173.0,0.002394]
[1718607193769,1.39776103,66174.0,66173.0,0.002394]
[1718607194230,1.40776103,66174.0,66173.0,0.002394]
[1718607194417,1.70999403,66174.0,66173.0,0.002394]
[1718607194577,1.40776103,66174.0,66173.0,0.002394]
[1718607195434,1.70999403,66174.0,66173.0,0.002394]
[1718607200188,1.69999403,66174.0,66173.0,0.002394]
[1718607201204,1.85208182,66174.0,66173.0,0.002394]
[1718607201765,1.86208182,66174.0,66173.0,0.002394]
[1718607203547,1.89738914,66174.0,66173.0,0.002394]
[1718607204650,1.86208182,66174.0,66173.0,0.002394]
[1718607204868,1.89740247,66174.0,66173.0,0.002394]
[1718607207557,1.88740247,66174.0,66173.0,0.002394]
[1718607207764,1.89740247,66174.0,66173.0,0.002394]
[1718607213288,1.84690247,66174.0,66173.0,0.002394]
[1718607213517,1.89740247,66174.0,66173.0,0.002394]
[1718607213976,1.84690247,66174.0,66173.0,0.002394]
[1718607214199,1.83690247,66174.0,66173.0,0.03035661]
[1718607214445,1.88740247,66174.0,66173.0,0.03035661]
[1718607214667,1.88740247,66174.0,66173.0,0.002394]
[1718607215322,1.89740247,66174.0,66173.0,0.002394]
[1718607216455,1.86208182,66174.0,66173.0,0.002394]
[1718607216673,1.89750573,66174.0,66173.0,0.002394]
[1718607217368,1.83700573,66174.0,66173.0,0.002394]
[1718607217589,1.88750573,66174.0,66173.0,0.002394]
[1718607217814,1.89750573,66174.0,66173.0,0.002394]
[1718607220024,1.84700573,66174.0,66173.0,0.002394]
[1718607220243,1.89750573,66174.0,66173.0,0.002394]
[1718607222877,2.18722555,66174.0,66173.0,0.002394]
[1718607223107,2.03513776,66174.0,66173.0,0.002394]
[1718607223353,2.40501844,66174.0,66173.0,0.002394]
[1718607224254,2.40092819,66174.0,66173.0,0.002394]
[1718607226484,2.33328051,66174.0,66173.0,0.002394]
[1718607228865,2.35537933,66174.0,66173.0,0.002394]
[1718607229305,2.35394559,66174.0,66173.0,0.002394]
[1718607229535,2.52158355,66174.0,66173.0,0.002394]
[1718607229755,2.35394559,66174.0,66173.0,0.002394]
[1718607230321,2.29344559,66174.0,66173.0,0.002394]
[1718607230519,2.35394559,66174.0,66173.0,0.002394]
[1718607231485,2.42158355,66174.0,66173.0,0.002394]
[1718607232277,2.35394559,66174.0,66173.0,0.002394]
[1718607232485,2.39904337,66174.0,66173.0,0.002394]
[1718607233118,2.39904426,66174.0,66173.0,0.002394]
[1718607233548,2.42269799,66174.0,66173.0,0.002394]
[1718607234490,2.41269799,66174.0,66173.0,0.002394]
[1718607234723,2.32709932,66174.0,66173.0,0.03035661]
[1718607234919,2.42269799,66174.0,66173.0,0.002394]
[1718607235368,2.12046499,66174.0,66173.0,0.002394]
[1718607235562,2.42269799,66174.0,66173.0,0.002394]
[1718607235777,2.12046499,66174.0,66173.0,0.002394]
[1718607235978,2.11046499,66174.0,66173.0,0.002394]
[1718607236175,2.12046499,66174.0,66173.0,0.002394]
[1718607236663,2.11046499,66174.0,66173.0,0.002394]
[1718607236889,2.12046499,66174.0,66173.0,0.002394]
[1718607237807,2.11046499,66174.0,66173.0,0.002394]
[1718607238028,2.12046499,66174.0,66173.0,0.002394]
[1718607239147,2.42269799,66174.0,66173.0,0.002394]
[1718607239370,2.12046499,66174.0,66173.0,0.002394]
[1718607239834,2.12046499,66174.0,66173.0,0.03035661]
[1718607240051,2.12047808,66174.0,66173.0,0.002394]
[1718607240538,2.1204811,66174.0,66173.0,0.002394]
[1718607241238,2.0599811,66174.0,66173.0,0.002394]
[1718607241468,2.1104811,66174.0,66173.0,0.002394]
[1718607241702,2.11048177,66174.0,66173.0,0.002394]
[1718607241934,2.12048177,66174.0,66173.0,0.002394]
[1718607242383,2.11048177,66174.0,66173.0,0.002394]
[1718607243969,2.12048177,66174.0,66173.0,0.002394]
[1718607244187,2.12048177,66174.0,66173.0,0.03035661]
[1718607244405,2.12048177,66174.0,66173.0,0.002394]
[1718607244634,2.11048177,66174.0,66173.0,0.002394]
[1718607244866,2.05998177,66174.0,66173.0,0.002394]
[1718607245093,2.05985975,66174.0,66173.0,0.002394]
[1718607245311,2.00545311,66174.0,66173.0,0.002394]
[1718607245558,2.00545311,66174.0,66173.0,0.03035661]
[1718607245774,2.00545311,66174.0,66173.0,0.002394]
[1718607246209,1.94245311,66174.0,66173.0,0.002394]
[1718607246680,1.99588412,66174.0,66173.0,0.002394]
[1718607246915,2.04638412,66174.0,66173.0,0.002394]
[1718607247856,2.61070491,66174.0,66173.0,0.002394]
[1718607248080,2.63747278,66174.0,66173.0,0.002394]
[1718607248308,2.38573978,66174.0,66173.0,0.002394]
[1718607248530,2.54065835,66174.0,66173.0,0.002394]
[1718607248748,2.165983,66174.0,66173.0,0.002394]
[1718607249197,2.456216,66174.0,66173.0,0.002394]
[1718607249447,2.153983,66174.0,66173.0,0.002394]
[1718607249668,2.267983,66174.0,66173.0,0.002394]
[1718607249886,2.117483,66174.0,66173.0,0.002394]
[1718607250105,2.157983,66174.0,66173.0,0.002394]
[1718607250349,2.446216,66174.0,66173.0,0.002394]
[1718607250566,2.460216,66174.0,66173.0,0.002394]
[1718607251053,2.56764303,66174.0,66173.0,0.002394]
[1718607251269,2.143983,66174.0,66173.0,0.002394]
[1718607251490,2.495716,66174.0,66173.0,0.002394]
[1718607251716,2.157983,66174.0,66173.0,0.002394]
[1718607251935,2.257983,66174.0,66173.0,0.002394]
[1718607252167,2.560216,66174.0,66173.0,0.002394]
[1718607252389,2.271983,66174.0,66173.0,0.002394]
[1718607252611,1.33762006,66172.0,66171.0,1e-06]
[1718607252828,2.02616129,66172.0,66171.0,1e-06]
[1718607253051,2.52423073,66172.0,66171.0,1e-06]
[1718607253731,2.57473073,66172.0,66171.0,1e-06]
[1718607253948,2.47473073,66172.0,66171.0,1e-06]
[1718607254190,2.50273073,66172.0,66171.0,1e-06]
[1718607254438,2.50273073,66172.0,66161.0,0.009394]
[1718607254439,0.28095606,66145.0,66144.0,0.29212748]
[1718607254693,0.88455906,66139.0,66138.0,0.009394]
[1718607254917,2.23449547,66139.0,66138.0,0.009394]
[1718607255138,1.9644953,66139.0,66138.0,0.009394]
[1718607255370,2.0249953,66139.0,66138.0,0.009394]
[1718607255597,2.17708309,66139.0,66138.0,0.009394]
[1718607256284,2.07908309,66139.0,66138.0,0.009394]
[1718607256533,1.93098309,66139.0,66138.0,0.009394]
[1718607256771,1.44497705,66139.0,66138.0,0.009394]
[1718607257008,1.48147705,66139.0,66138.0,0.009394]
[1718607257700,1.49547705,66139.0,66138.0,0.009394]
[1718607257922,1.50947705,66139.0,66138.0,0.009394]
[1718607258160,1.9071007,66139.0,66138.0,0.009394]
[1718607258603,1.96658953,66139.0,66138.0,0.009394]
[1718607258839,1.8666007,66139.0,66138.0,0.009394]
[1718607259071,1.8526007,66139.0,66138.0,0.009394]
[1718607259298,1.9031007,66139.0,66138.0,0.009394]
[1718607259528,1.9171007,66139.0,66138.0,0.009394]
[1718607259975,1.9031007,66139.0,66138.0,0.009394]
[1718607260195,2.2054937,66139.0,66138.0,0.009394]
[1718607260412,2.3956937,66139.0,66138.0,0.009394]
[1718607260651,1.58142306,66133.0,66132.0,0.009394]
[1718607260881,2.26247474,66133.0,66132.0,0.009394]
[1718607261137,2.26772974,66133.0,66132.0,0.009394]
[1718607261349,1.58152606,66128.0,66126.0,0.009405]
[1718607261576,1.78411385,66128.0,66126.0,0.009405]
[1718607261794,1.43041085,66128.0,66126.0,0.009405]
[1718607262055,1.48091085,66128.0,66126.0,0.009405]
[1718607262444,1.78335385,66128.0,66126.0,0.009405]
[1718607262652,1.79335385,66128.0,66126.0,0.009405]
[1718607263439,1.73285385,66128.0,66126.0,0.009405]
[1718607263648,1.80735385,66128.0,66126.0,0.009405]
[1718607264070,1.82135385,66128.0,66126.0,0.009405]
[1718607265160,2.36664464,66128.0,66126.0,0.009405]
[1718607265375,2.36455685,66128.0,66127.0,3e-07]
[1718607265594,2.26455685,66128.0,66127.0,3e-07]
[1718607266071,2.36455685,66128.0,66127.0,3e-07]
[1718607266307,2.26455685,66128.0,66127.0,3e-07]
[1718607266963,1.96211385,66128.0,66127.0,0.0008503]
[1718607267447,1.371178,66119.0,66118.0,0.28475883]
[1718607267695,2.31282674,66119.0,66118.0,0.10145883]
[1718607268352,2.66531074,66119.0,66118.0,8.3e-07]
[1718607268571,2.78831074,66119.0,66118.0,8.3e-07]
[1718607268802,2.33532674,66119.0,66118.0,8.3e-07]
[1718607269020,1.68175606,66117.0,66116.0,0.00440583]
[1718607269247,2.23633785,66117.0,66116.0,0.00440583]
[1718607269460,2.23633785,66117.0,66116.0,8.3e-07]
[1718607270200,1.93384385,66117.0,66116.0,8.3e-07]
[1718607270415,2.28683785,66117.0,66116.0,8.3e-07]
[1718607270633,2.30083785,66117.0,66116.0,8.3e-07]
[1718607270858,2.45292564,66117.0,66116.0,8.3e-07]
[1718607271071,2.30083785,66117.0,66116.0,8.3e-07]
[1718607271751,2.01234385,66117.0,66116.0,8.3e-07]
[1718607271966,1.96184385,66117.0,66116.0,8.3e-07]
[1718607272197,2.01234385,66117.0,66116.0,8.3e-07]
[1718607272423,1.85184385,66117.0,66116.0,8.3e-07]
[1718607272644,1.44934985,66117.0,66116.0,8.3e-07]
[1718607272882,1.41740965,66117.0,66116.0,8.3e-07]
[1718607273107,1.42740965,66117.0,66116.0,8.3e-07]
[1718607273343,1.41740965,66117.0,66116.0,8.3e-07]
[1718607274085,1.51740965,66117.0,66116.0,8.3e-07]
[1718607274308,1.66949744,66117.0,66116.0,8.3e-07]
[1718607274532,2.21326765,66117.0,66116.0,8.3e-07]
[1718607274747,2.22326765,66117.0,66116.0,8.3e-07]
[1718607274976,1.91286842,66117.0,66116.0,8.3e-07]
[1718607276245,1.92286842,66117.0,66116.0,8.3e-07]
[1718607276459,1.91286842,66117.0,66116.0,8.3e-07]
[1718607276886,1.61037442,66117.0,66116.0,8.3e-07]
[1718607277097,1.62037442,66117.0,66116.0,8.3e-07]
[1718607277331,1.92286842,66117.0,66116.0,8.3e-07]
[1718607277545,1.97286842,66117.0,66116.0,8.3e-07]
[1718607277775,2.27536242,66117.0,66116.0,8.3e-07]
[1718607277993,1.97286842,66117.0,66116.0,8.3e-07]
[1718607278410,2.42745021,66117.0,66116.0,8.3e-07]
[1718607278614,1.97286842,66117.0,66116.0,8.3e-07]
[1718607279488,1.96286842,66117.0,66116.0,8.3e-07]
[1718607279697,1.55987442,66117.0,66116.0,8.3e-07]
[1718607279919,1.61037442,66117.0,66116.0,8.3e-07]
[1718607280124,1.91286842,66117.0,66116.0,8.3e-07]
[1718607280362,1.92286842,66117.0,66116.0,8.3e-07]
[1718607280580,1.91286842,66117.0,66116.0,8.3e-07]
[1718607281447,1.55987442,66117.0,66116.0,8.3e-07]
[1718607281902,1.86236842,66117.0,66116.0,8.3e-07]
[1718607282585,1.46900442,66117.0,66116.0,0.14710083]
[1718607282809,1.46900442,66117.0,66116.0,8.3e-07]
[1718607285371,1.47242195,66117.0,66116.0,8.3e-07]